[Event "2nd Bassano Easter 2022"]
[Site "Bassano del Grappa"]
[Date "2022.04.15"]
[Round "2.4"]
[White "Pubantz, Jan"]
[Black "Heberla, Bartlomiej"]
[Result "0-1"]
[ECO "D23"]
[WhiteElo "2271"]
[BlackElo "2570"]
[Annotator "TA"]
[PlyCount "26"]
[EventDate "2022.04.14"]
[EventType "swiss"]
[EventCountry "ITA"]
[SourceTitle "playchess.com"]
[Source "ChessBase"]
[SourceQuality "1"]
[TimeControl "30/3600+30:1800+30"]

{[%evp 9,26,0,7,-26,-23,-20,-10,-25,-29,-42,-37,-48,-39,-42,-37,-56,-22,-19,-32]} 1. d4 {[%emt 0:00:08]} d5 {[%emt 0:10:23][%cal Bd7d5,Bd5c4][%mdl 32]} 2. c4 {[%emt 0:00:04]} dxc4 {[%emt 0:00:32]} 3. Nf3 {[%emt 0:00:10]} Nf6 {[%emt 0:00:03]} 4. Qa4+ {[%emt 0:00:29]} Nbd7 {[%emt 0:06:06]} 5. Nc3 {[%emt 0:02:49]} a6 {[%emt 0:04:07]} 6. e3 {[%emt 0:05:30] D23: Queen's Gambit Accepted: 3 Nf3 Nf6 sidelines.} Rb8 {[%emt 0:02:50]} 7. Bxc4 {[%emt 0:02:02]} e6 {[%emt 0:02:21] Threatens to win with ...b5.} 8. Be2 {[%emt 0:08:29]} b5 {[%emt 0:00:22]} 9. Qc2 {[%emt 0:00:16]} Bb7 {[%emt 0:00:12]} 10. O-O {[%emt 0:01:16]} c5 {[%emt 0:02:59] [#]} 11. dxc5 $146 {[%emt 0:08:37]} ({Predecessor:} 11. a3 Rc8 12. dxc5 Nxc5 13. Bd2 Be7 14. Rfd1 Qc7 15. Rac1 O-O 16. Be1 Qb8 17. b4 {½-½ (37) Malakhov,V (2692)-Naiditsch,A (2693) Budva 2009}) 11... Bxc5 {[%emt 0:01:38]} 12. a3 {[%emt 0:00:51]} Qc7 {[%emt 0:02:56]} 13. b4 {[%emt 0:08:10]} Bd6 {[%emt 0:06:33] Weighted Error Value: White=0.07 (flawless) /Black=0.04 (flawless)} 0-1

[Event "2nd Bassano Easter 2022"]
[Site "Bassano del Grappa"]
[Date "2022.04.15"]
[Round "2.5"]
[White "Peycheva, Gergana"]
[Black "Bosiocic, Marin"]
[Result "1-0"]
[ECO "E61"]
[WhiteElo "2342"]
[BlackElo "2522"]
[Annotator "TA"]
[PlyCount "67"]
[EventDate "2022.04.14"]
[EventType "swiss"]
[EventCountry "ITA"]
[SourceTitle "playchess.com"]
[Source "ChessBase"]
[SourceQuality "1"]
[TimeControl "30/3600+30:1800+30"]

{[%evp 9,67,18,39,-19,-23,-26,-30,-25,-9,-50,-16,-27,10,8,0,0,14,0,84,71,70,58,57,59,159,151,156,152,134,104,116,125,236,230,352,355,385,389,595,585,681,672,648,627,786,755,884,897,1050,1060,1176,1120,1335,1285,1560,1416,29985,29986,29985,29986]} 1. d4 {[%emt 1:01:00]} Nf6 {[%emt 1:01:00]} 2. Bf4 {[%emt 0:00:30]} g6 {[%emt 0:00:30]} 3. Nf3 {[%emt 0:00:30]} d6 {[%emt 0:00:30]} 4. c4 {[%emt 0:00:30]} Bg7 {[%emt 0:00:30]} 5. Nc3 {[%emt 0:00:30]} Nh5 {[%emt 0:00:30]} 6. e3 {[%emt 0:00:30] E61: King's Indian: Early deviations for White, including Smyslov System.} (6. Bg5 $14) 6... Nxf4 $11 {[%emt 0:00:30]} 7. exf4 {[%emt 0:00:30]} O-O {[%emt 0:00:30]} 8. Be2 {[%emt 0:00:30] Black has an edge.} Nc6 {[%emt 0:00:30] [#]} 9. h3 $146 {[%emt 0:00:30]} ({Predecessor:} 9. d5 Nb8 10. Rc1 Nd7 11. O-O a6 12. a4 Nf6 13. h3 Bd7 14. Nd4 Qc8 15. Kh2 {0-1 (38) Rohrbach,H (1368)-Kodalle,A (1474) Regen 2004}) 9... a5 {[%emt 0:00:30]} 10. O-O {[%emt 0:00:30]} Bh6 {[%emt 0:00:30]} 11. Qd2 {[%emt 0:00:30]} e6 {[%emt 0:00:30]} 12. Rad1 {[%emt 0:00:30]} Qf6 {[%emt 0:00:30]} 13. Ng5 {[%emt 0:00:30]} Qg7 {[%emt 0:00:30]} (13... Bg7 $11 {remains equal.}) 14. Nb5 $16 {[%emt 0:00:30] Hoping for d5. Pair of Knights!} f6 {[%emt 0:00:30] [#]} 15. Nxe6 $1 {[%emt 0:00:30] 0x0.002037565f53dp-1022s more active pieces. The black rooks are badly placed.} Bxe6 {[%emt 0:00:30]} 16. d5 {[%emt 0:00:30]} Bxh3 {[%emt 0:00:30]} 17. dxc6 {[%emt 0:00:30]} ({Much less strong is} 17. gxh3 $6 Nd8 $14) 17... bxc6 {[%emt 0:00:30] [#]} 18. Bf3 $1 {[%emt 0:00:30]} Rab8 {[%emt 0:00:30]} ({Less strong is} 18... Be6 19. Bxc6 Ra6 20. Bd5 Bxd5 21. Qxd5+ Kh8 22. g3 $16) 19. Nd4 {[%emt 0:00:30]} Bd7 {[%emt 0:00:30]} 20. Nxc6 {[%emt 0:00:30]} Rb6 {[%emt 0:00:30]} (20... Bxc6 $16 {was necessary.} 21. Bxc6 Kh8) 21. Nxa5 $18 {[%emt 0:00:30]} f5 {[%emt 0:00:30]} (21... Rfb8 {was worth a try.}) 22. b4 {[%emt 0:00:30][%cal Bb2b4,Bb4b5][%mdl 32]} Ba4 {[%emt 0:00:30]} 23. Rde1 {[%emt 0:00:30][%cal Bd1e1,Be1e2,Be2e6,Be6f6][%mdl 32]} g5 {[%emt 0:00:30]} (23... Be8 $142 24. b5 g5) 24. b5 {[%emt 0:00:30]} gxf4 {[%emt 0:00:30]} 25. Nc6 {[%emt 0:00:30]} Bg5 {[%emt 0:00:30]} 26. Re2 {[%emt 0:00:30]} Kh8 {[%emt 0:00:30]} 27. Qa5 {[%emt 0:00:30]} h5 {[%emt 0:00:30]} 28. Qxa4 {[%emt 0:00:30]} h4 {[%emt 0:00:30]} 29. Rfe1 {[%emt 0:00:30]} Qg6 {[%emt 0:00:30]} 30. Re6 {[%emt 0:00:30]} Bf6 {[%emt 0:00:30]} 31. Ne7 {[%emt 0:30:30]} Qg5 {[%emt 0:30:30]} 32. Nd5 {[%emt 0:00:30]} h3 {[%emt 0:00:30]} 33. Rxf6 {[%emt 0:00:30]} Rg8 {[%emt 0:00:30]} 34. Ree6 {[%emt 0:00:30] Weighted Error Value: White=0.07 (flawless) /Black=0.74} 1-0

[Event "2nd Bassano Easter 2022"]
[Site "Bassano del Grappa"]
[Date "2022.04.15"]
[Round "2.6"]
[White "Nesterov, Arseniy"]
[Black "Wyss, Jonas"]
[Result "1-0"]
[ECO "D90"]
[WhiteElo "2522"]
[BlackElo "2265"]
[Annotator "TA"]
[PlyCount "107"]
[EventDate "2022.04.14"]
[EventType "swiss"]
[EventCountry "ITA"]
[SourceTitle "playchess.com"]
[Source "ChessBase"]
[SourceQuality "1"]
[TimeControl "30/3600+30:1800+30"]

{[%evp 17,107,-6,14,8,10,14,11,8,14,6,8,-19,10,9,14,12,7,11,33,22,42,30,45,42,30,23,86,95,103,50,55,46,51,48,56,36,49,52,75,79,88,91,97,94,96,101,101,85,113,116,115,110,108,64,54,61,209,209,206,183,170,136,149,129,367,373,366,364,348,348,448,441,408,385,472,475,420,228,387,389,1825,1596,4132,3993,29980,29981,29986,29987,29993,29994,29994,29994]} 1. d4 {[%emt 1:01:00]} Nf6 {[%emt 0:00:33]} 2. c4 {[%emt 0:00:00]} g6 {[%emt 0:00:10]} 3. Nc3 {[%emt 0:00:00]} d5 {[%emt 0:00:07]} 4. cxd5 {[%emt 0:00:00]} Nxd5 {[%emt 0:00:07]} 5. Bd2 {[%emt 0:00:00]} Bg7 {[%emt 0:01:05]} 6. e4 {[%emt 0:00:00]} Nxc3 {[%emt 0:00:36]} 7. Bxc3 {[%emt 0:00:00]} O-O {[%emt 0:01:38]} 8. Nf3 {[%emt 0:00:00]} Bg4 {[%emt 0:03:40]} 9. Be2 {[%emt 0:00:00]} c5 {[%emt 0:01:49] 9...Nc6 is more advanced technology.} 10. d5 {[%emt 0:00:00] D90: Grünfeld: 4 Nf3 Bg7 sidelines.} e6 {[%emt 0:00:30]} 11. O-O {[%emt 0:00:00]} exd5 {[%emt 0:00:34]} 12. exd5 {[%emt 0:00:00] The position is equal.} Qd6 {[%emt 0:01:34]} 13. Qb3 {[%emt 0:00:00]} Nd7 {[%emt 0:03:04]} 14. Qxb7 {[%emt 0:00:00] [#]} Bxf3 $146 {[%emt 0:03:50]} ({Predecessor:} 14... Bxc3 15. bxc3 Ne5 16. Nxe5 Bxe2 17. Nc6 Bxf1 18. Rxf1 Kg7 19. c4 Rfe8 20. g3 a6 {1-0 (50) Tunik,G (2420)-Mu,K (2386) Albena 2015}) 15. Bxf3 {[%emt 0:00:00]} Bxc3 {[%emt 0:01:19]} 16. bxc3 {[%emt 0:00:00]} Ne5 $1 {[%emt 0:01:21] Against Qc6} 17. Be2 {[%emt 0:00:00]} Rab8 {[%emt 0:07:59]} (17... c4 $5 {[%cal Rf8b8]} 18. Qb1 Qxd5 $11) 18. Qa6 {[%emt 0:00:00]} Qxd5 {[%emt 0:03:57]} 19. f4 {[%emt 0:00:00] Hoping for Rad1.} Rb6 {[%emt 0:08:49]} 20. Qxa7 {[%emt 0:00:00]} Rb2 {[%emt 0:00:12]} 21. Rf2 {[%emt 0:00:00]} Qe4 {[%emt 0:17:59] [#]} 22. Qxc5 $1 $16 {[%emt 0:00:00]} Rxe2 {[%emt 0:00:52][%cal Bb2e2,Be2e5,Be5c5][%mdl 32]} (22... Nd7 23. Qc4) 23. Qxe5 {[%emt 0:00:00]} (23. Rxe2 $16 Qxe2 24. Qxe5 (24. fxe5 Rd8 $11)) 23... Qxe5 $14 {[%emt 0:00:23]} 24. fxe5 {[%emt 0:00:00]} Rxe5 $16 {[%emt 0:00:10][%mdl 4096] Endgame KRR-KRR} 25. a4 {[%emt 0:00:00]} Ra8 {[%emt 0:00:55]} 26. Rf4 {[%emt 0:00:00]} Rc5 {[%emt 0:05:27]} 27. Ra3 {[%emt 0:00:00]} Kg7 {[%emt 0:04:14]} 28. Kf2 {[%emt 0:00:00]} f5 {[%emt 0:00:50]} 29. Ke3 {[%emt 0:00:00]} Kf6 {[%emt 0:00:21]} 30. Rb4 {[%emt 0:00:00]} Ke5 {[%emt 0:00:00]} 31. c4 {[%emt 0:00:00]} f4+ {[%emt 0:02:47]} 32. Kd2 {[%emt 0:03:43]} Ke4 {[%emt 0:01:58]} 33. Rd3 {[%emt 0:03:31]} g5 {[%emt 0:02:36][%cal Bg6g5,Bg5g4][%mdl 32] [#]} 34. Kc3 $1 {[%emt 0:05:16]} g4 {[%emt 0:02:37]} 35. Rd4+ {[%emt 0:01:29]} Ke3 {[%emt 0:00:36]} 36. Rb7 {[%emt 0:01:39]} Rxa4 {[%emt 0:04:31]} (36... h5 $14) 37. Re7+ $18 {[%emt 0:02:49]} Kf2 {[%emt 0:00:07]} 38. Rxf4+ {[%emt 0:00:41]} Kxg2 {[%emt 0:00:37]} 39. Rxg4+ {[%emt 0:00:11]} Kh3 {[%emt 0:00:47]} 40. Rd4 {[%emt 0:02:27] &Bianco is more active.} h5 {[%emt 0:04:50] Black cannot hold the game after this.} (40... Kxh2 $16 {was called for.} 41. Rxh7+ Kg3) 41. Re3+ {[%emt 0:00:40]} Kg2 {[%emt 0:00:30]} (41... Kxh2 $2 {gets mated.} 42. Rd2+ Kh1 43. Re1#) 42. Rd2+ {[%emt 0:00:06]} Kf1 {[%emt 0:00:08]} 43. Re4 {[%emt 0:00:13]} Ra3+ {[%emt 0:02:52]} 44. Kd4 {[%emt 0:03:04]} Rc8 {[%emt 0:00:15] ...Rd8+ is the strong threat.} 45. Re5 {[%emt 0:00:42]} h4 {[%emt 0:01:07]} 46. Rc2 {[%emt 0:00:29]} Rg8 {[%emt 0:02:14]} 47. Rb5 {[%emt 0:02:09]} (47. c5 $142) 47... Ra1 $2 {[%emt 0:01:10]} (47... Rg4+ 48. Kd5 Rg5+ 49. Kc6 Rg6+ 50. Kc5 Ra1) 48. c5 {[%emt 0:02:45][%cal Bc4c5,Bc5c6,Bc6c7][%mdl 32]} h3 $2 {[%emt 0:00:37]} (48... Rd1+ 49. Ke4 Re1+ 50. Kd5 Rg5+ 51. Kc6 h3) 49. c6 {[%emt 0:02:57]} Rg4+ {[%emt 0:03:47]} 50. Kc3 {[%emt 0:03:05] Intending c7 and mate.} Rg2 {[%emt 0:01:10]} 51. c7 {[%emt 0:00:54] White mates.} ({Inferior is} 51. Rf5+ Kg1 52. Kd3 (52. c7 $2 Ra3+ 53. Kb4 Rxc2 $19) 52... Rd1+ 53. Kc3 Ra1 $11) 51... Rg8 {[%emt 0:02:51]} 52. Rb8 {[%emt 0:00:26]} Kg1 {[%emt 0:02:10]} 53. Rxg8+ {[%emt 0:00:10]} Kh1 {[%emt 0:00:04]} 54. Rb8 {[%emt 0:00:06] Weighted Error Value: White=0.08 (flawless) /Black=0.44} 1-0

[Event "2nd Bassano Easter 2022"]
[Site "Bassano del Grappa"]
[Date "2022.04.15"]
[Round "2.8"]
[White "Nikolov, Momchil"]
[Black "Ciolek, Andreas"]
[Result "1-0"]
[ECO "E92"]
[WhiteElo "2501"]
[BlackElo "2194"]
[Annotator "TA"]
[PlyCount "65"]
[EventDate "2022.04.14"]
[EventType "swiss"]
[EventCountry "ITA"]
[SourceTitle "playchess.com"]
[Source "ChessBase"]
[SourceQuality "1"]
[TimeControl "30/3600+30:1800+30"]

{[%evp 21,65,59,60,55,57,38,70,52,97,70,84,91,103,99,241,221,231,208,195,191,205,200,363,356,629,622,585,619,592,606,627,612,615,566,529,520,508,347,595,608,564,378,547,547,520,443]} 1. d4 {[%emt 0:00:04]} Nf6 {[%emt 0:00:10]} 2. c4 {[%emt 0:00:07]} g6 {[%emt 0:00:06]} 3. Nc3 {[%emt 0:00:06]} Bg7 {[%emt 0:00:05]} 4. e4 {[%emt 0:00:08]} d6 {[%emt 0:00:05]} 5. h3 {[%emt 0:00:11]} O-O {[%emt 0:00:20]} 6. Be3 {[%emt 0:00:07]} e5 {[%emt 0:00:47]} 7. d5 {[%emt 0:00:25]} Na6 {[%emt 0:01:02]} 8. Nf3 {[%emt 0:00:38]} Nc5 {[%emt 0:02:06]} 9. Nd2 {[%emt 0:00:18]} a5 {[%emt 0:03:54]} 10. Be2 {[%emt 0:00:50]} Bd7 {[%emt 0:03:00] is recently more successful than 10...Ne8.} 11. g4 {[%emt 0:01:21][%cal Bg2g4,Bg4g5][%mdl 32]} c6 {[%emt 0:01:15]} 12. g5 {[%emt 0:01:41] E92: King's Indian: Classical: 6 Be2 e5: 7 dxe5, 7 Be3 and Petrosian System without 7...Nbd7.} Ne8 {[%emt 0:00:05]} 13. h4 {[%emt 0:00:36]} Nc7 {[%emt 0:01:43]} 14. Qc2 {[%emt 0:06:50] [#] White is slightly better.} Qb8 $146 {[%emt 0:04:36]} ({Predecessor:} 14... N7a6 15. a3 f5 16. Nb3 Nxe4 17. Nxe4 fxe4 18. Qxe4 Bf5 19. Qg2 c5 20. Nd2 Nc7 {1-0 (41) Simantsev,M (2473)-Maes,W (2265) Police 2013}) 15. O-O-O {[%emt 0:04:43]} N7a6 {[%emt 0:07:31]} 16. a3 {[%emt 0:01:19]} cxd5 {[%emt 0:01:22]} 17. Nxd5 {[%emt 0:11:54]} b5 {[%emt 0:03:04]} (17... Qd8 $16 {keeps fighting.}) 18. cxb5 {[%emt 0:03:17]} Bxb5 {[%emt 0:00:08]} 19. Bxb5 {[%emt 0:02:20]} Qxb5 {[%emt 0:00:05]} 20. Kb1 {[%emt 0:01:15]} Rfb8 {[%emt 0:08:50]} 21. Nc4 {[%emt 0:05:25]} Na4 $2 {[%emt 0:02:59] [#]} (21... Qb3 {was worth a try.} 22. Nxd6 (22. Qxb3 Rxb3 23. Nxd6 Rab8 $18) 22... Qxc2+ 23. Kxc2 Ne6) 22. Rd2 $18 {[%emt 0:03:11]} ({Inferior is} 22. Nxd6 Qxb2+ 23. Qxb2 Nxb2 $11) 22... N6c5 $2 {[%emt 0:10:00]} (22... Rd8 23. Nxd6 Rxd6) 23. Bxc5 {[%emt 0:03:30] Active counter play!} dxc5 {[%emt 0:02:32]} 24. Nc7 {[%emt 0:02:30][%csl LRa8,LRb5][%cal Bd5c7,Bc7a8,Ba8b6,Bb6d7,Bd7e5][%mdl 32] Pair of Knights!} Qc6 {[%emt 0:00:22]} 25. Nxa8 {[%emt 0:01:06]} Nc3+ {[%emt 0:01:04]} 26. Qxc3 {[%emt 0:05:04]} Qxe4+ {[%emt 0:00:15]} 27. Ka2 {[%emt 0:00:14] [#] Rhd1 is the strong threat.} Qxh1 {[%emt 0:00:21]} 28. Nab6 {[%emt 0:00:28]} Qxh4 {[%emt 0:00:56]} 29. Qg3 {[%emt 0:01:33]} Qh1 {[%emt 0:01:45]} (29... Qxg3 30. fxg3 e4) 30. Nd7 {[%emt 0:00:00]} Rd8 {[%emt 0:00:00]} 31. Ndxe5 {[%emt 0:08:45]} Rd4 {[%emt 0:02:45]} (31... Rxd2 $142 32. Nxd2 Qd5+ 33. Nec4 Bd4) 32. Rxd4 {[%emt 0:01:35]} cxd4 {[%emt 0:00:05]} 33. Qf3 {[%emt 0:00:19] Black did not feel at home in the position after the opening.  Weighted Error Value: White=0.20 (precise) /Black=0.80} 1-0

[Event "2nd Bassano Easter 2022"]
[Site "Bassano del Grappa"]
[Date "2022.04.15"]
[Round "2.9"]
[White "Spyratos, Nikolaos"]
[Black "Abel, Dennes"]
[Result "1/2-1/2"]
[ECO "D10"]
[WhiteElo "2100"]
[BlackElo "2442"]
[Annotator "TA"]
[PlyCount "91"]
[EventDate "2022.04.14"]
[EventType "swiss"]
[EventCountry "ITA"]
[SourceTitle "playchess.com"]
[Source "ChessBase"]
[SourceQuality "1"]
[TimeControl "30/3600+30:1800+30"]

{[%evp 12,91,26,7,31,16,21,18,24,17,14,0,0,0,0,2,7,12,12,0,20,13,28,31,77,64,72,79,86,69,103,113,103,102,86,66,116,118,116,119,125,83,164,145,155,170,169,179,175,165,300,291,289,275,306,195,216,191,215,199,202,158,143,164,153,145,126,141,163,105,105,94,99,82,69,32,36,33,40,23,39,39]} 1. d4 {[%emt 0:00:30]} d5 {[%emt 0:00:15]} 2. c4 {[%emt 0:00:00]} c6 {[%emt 0:00:20]} 3. cxd5 {[%emt 0:00:00]} cxd5 {[%emt 0:00:09]} 4. Bf4 {[%emt 0:00:03]} Nf6 {[%emt 0:01:27]} 5. Nc3 {[%emt 0:00:09]} Nc6 {[%emt 0:00:59]} 6. e3 {[%emt 0:01:03]} a6 {[%emt 0:00:16]} 7. Be2 {[%emt 0:00:53]} e6 {[%emt 0:02:25] D10: Slav Defence: 3 cxd5 (without early Nf3) and 3 Nc3.} 8. Bd3 {[%emt 0:01:50]} Be7 {[%emt 0:04:27]} 9. h3 {[%emt 0:02:51] [#]} b5 $146 {[%emt 0:08:33] The position is equal.} ({Predecessor:} 9... O-O 10. Nf3 Bd6 11. Bxd6 Qxd6 12. O-O Bd7 13. a3 Rac8 14. Na4 Rc7 15. b4 Rfc8 16. Nc5 g6 17. Qd2 e5 18. dxe5 Nxe5 19. Nxe5 Qxe5 20. f4 Qe7 21. Nxd7 Qxd7 {0-1 (73) Chabot,R (2153)-Perez Rodriguez,L (2368) Montreal 2017}) 10. a4 {[%emt 0:05:16]} b4 {[%emt 0:08:51]} 11. Nb1 {[%emt 0:00:11]} Bd6 {[%emt 0:01:05]} 12. Bxd6 {[%emt 0:03:16]} Qxd6 {[%emt 0:00:05]} 13. Nf3 {[%emt 0:02:33]} e5 {[%emt 0:02:11]} 14. dxe5 {[%emt 0:01:08]} Nxe5 {[%emt 0:00:07]} 15. Be2 {[%emt 0:05:29]} O-O {[%emt 0:01:39]} 16. Nbd2 {[%emt 0:01:36][%cal Bb1d2,Bd2b3,Bb3c5,Bc5d7,Bd7e5][%mdl 32]} Be6 {[%emt 0:10:05]} 17. Nb3 {[%emt 0:03:57]} Ng6 {[%emt 0:03:37]} (17... Rfc8 $14 {might be stronger.}) 18. O-O $16 {[%emt 0:03:34]} Ne4 {[%emt 0:02:31]} 19. Qd4 {[%emt 0:02:21]} f5 {[%emt 0:03:31]} 20. Rfd1 {[%emt 0:02:43]} Kh8 {[%emt 0:05:06]} 21. Rac1 {[%emt 0:02:29][%cal Ba1c1,Bc1c6,Bc6c7,Bc7e7][%mdl 32]} Bg8 {[%emt 0:00:48]} 22. Nc5 {[%emt 0:04:35]} a5 {[%emt 0:00:18]} 23. Bb5 {[%emt 0:02:16]} Qe7 {[%emt 0:04:38]} (23... Rfc8 $14 24. Nb3 Rxc1 25. Rxc1 f4) 24. Nd7 {[%emt 0:09:10]} Rfd8 {[%emt 0:00:26] [#]} 25. Nde5 {[%emt 0:02:17]} Rd6 {[%emt 0:00:29]} 26. Rc6 {[%emt 0:01:12]} Nf8 {[%emt 0:04:41]} (26... Nxe5 $16 27. Qxe5 Qxe5 28. Nxe5 Rxc6 29. Nxc6 (29. Bxc6 Rc8 $14) 29... g6) 27. Qb6 $18 {[%emt 0:01:31]} Rdd8 {[%emt 0:02:24]} 28. Rc7 {[%emt 0:01:16] &Bianco is much more active.} Qd6 {[%emt 0:00:52]} 29. Qxd6 {[%emt 0:01:50]} Rxd6 {[%emt 0:01:25]} 30. Rdc1 {[%emt 0:00:00]} Rad8 {[%emt 0:00:00]} (30... g6 {keeps fighting.} 31. Rc8 Rd8 32. Rxd8 Rxd8) 31. Nc6 {[%emt 0:08:08]} Ra8 {[%emt 0:01:37]} 32. Ncd4 {[%emt 0:00:18]} g6 {[%emt 0:03:45]} 33. Re7 {[%emt 0:01:59]} Rf6 {[%emt 0:00:58]} 34. g3 {[%emt 0:03:00]} g5 {[%emt 0:02:51]} 35. Rc6 {[%emt 0:01:48]} Ng6 {[%emt 0:00:06] [#]} 36. Rxe4 {[%emt 0:16:01][%mdl 512]} Rxc6 {[%emt 0:00:20]} 37. Bxc6 {[%emt 0:00:04]} dxe4 {[%emt 0:00:12]} 38. Bxa8 {[%emt 0:00:17]} exf3 {[%emt 0:00:06]} 39. Bxf3 {[%emt 0:00:29][%mdl 4096] Endgame KBN-KBN} f4 {[%emt 0:03:43]} 40. Be2 {[%emt 0:05:15]} ({Better is} 40. exf4 $18 gxf4 41. Nc6) 40... fxe3 $16 {[%emt 0:00:23]} 41. fxe3 {[%emt 0:00:02] Hoping for Nc6.} Ne5 {[%emt 0:00:26] Against Nc6} 42. Kf2 {[%emt 0:00:21]} Bd5 {[%emt 0:00:53]} 43. Bb5 {[%emt 0:02:55]} Kg7 {[%emt 0:00:57]} 44. e4 {[%emt 0:01:24]} Bxe4 {[%emt 0:01:57]} 45. Nb3 {[%emt 0:00:08]} Nc6 {[%emt 0:07:49]} 46. Ke3 {[%emt 0:01:03] Weighted Error Value: White=0.13 (very precise) /Black=0.14 (very precise)} 1/2-1/2

[Event "2nd Bassano Easter 2022"]
[Site "Bassano del Grappa"]
[Date "2022.04.15"]
[Round "2.10"]
[White "Petkidis, Anthony"]
[Black "Huber, Benedikt"]
[Result "1-0"]
[ECO "E05"]
[WhiteElo "2420"]
[BlackElo "2191"]
[Annotator "TA"]
[PlyCount "91"]
[EventDate "2022.04.14"]
[EventType "swiss"]
[EventCountry "ITA"]
[SourceTitle "playchess.com"]
[Source "ChessBase"]
[SourceQuality "1"]
[TimeControl "30/3600+30:1800+30"]

{[%evp 23,91,18,14,14,16,13,12,18,0,5,56,41,59,30,70,49,44,42,43,42,43,43,46,44,106,118,317,331,347,335,333,343,339,334,326,309,382,371,437,428,520,513,624,618,738,724,692,745,1350,1582,1604,1509,1427,489,1116,1200,1216,1148,1755,1050,6091,5528,5728,6087,5800,5693,5616,5265,2357,1939]} 1. Nf3 {[%emt 0:00:21]} d5 {[%emt 0:00:40]} 2. c4 {[%emt 0:00:19]} e6 {[%emt 0:00:12]} 3. g3 {[%emt 0:00:16]} Nf6 {[%emt 0:00:16]} 4. Bg2 {[%emt 0:00:12]} Be7 {[%emt 0:00:22]} 5. O-O {[%emt 0:00:48]} O-O {[%emt 0:00:11]} 6. d4 {[%emt 0:00:30]} dxc4 {[%emt 0:00:16]} 7. Qc2 {[%emt 0:00:25]} a6 {[%emt 0:00:10]} 8. a4 {[%emt 0:00:16]} Bd7 {[%emt 0:00:07][%cal Bc8d7,Bd7c6,Bc6d5,Bd5e4][%mdl 32]} 9. Qxc4 {[%emt 0:00:12]} Bc6 {[%emt 0:00:09]} 10. Bg5 {[%emt 0:02:39]} Bd5 {[%emt 0:06:13]} 11. Qc2 {[%emt 0:00:45]} Be4 {[%emt 0:00:26]} 12. Qc1 {[%emt 0:00:38]} Nc6 {[%emt 0:00:51]} 13. Nbd2 {[%emt 0:09:56] aiming for Bxf6. E05: Open Catalan: 5 Nf3 Be7.} Nxd4 {[%emt 0:16:44]} (13... Bg6 {looks sharper.} 14. e3 h6 15. Bxf6 Bxf6 16. Qc3 Qe7) 14. Nxd4 {[%emt 0:00:23]} Bxg2 {[%emt 0:00:08] [#]} 15. Nxe6 $1 {[%emt 0:00:37] The position is equal.} fxe6 {[%emt 0:00:08]} 16. Kxg2 {[%emt 0:00:15] [#]} h6 $146 {[%emt 0:00:43]} ({Black should play} 16... Qd5+ $11 17. Nf3 h6 18. Bxf6 Bxf6) ({Predecessor:} 16... Qd5+ 17. Nf3 c5 18. a5 h6 19. Bd2 e5 20. Be3 c4 21. Qc3 Ng4 22. Rad1 Qb5 23. Bb6 Rac8 24. Qc2 Nf6 25. Qf5 {½-½ (25) Schmidt,T (2435)-Rogos,J (2507) ICCF email 2019}) 17. Bxf6 $14 {[%emt 0:03:42]} Bxf6 {[%emt 0:00:10]} 18. Ne4 {[%emt 0:21:08]} Qd4 {[%emt 0:04:35]} 19. Qc2 {[%emt 0:02:27]} (19. f3 {is more complex.} Qxb2 20. Rb1 Qa2 21. Rxb7 Bd4 22. Qd2) 19... Qxb2 {[%emt 0:12:57]} 20. Qxb2 {[%emt 0:01:00]} (20. Nxf6+ {seems wilder.} Qxf6 21. Qxc7 Rab8 22. a5) 20... Bxb2 {[%emt 0:00:05]} 21. Rab1 {[%emt 0:00:13]} Bd4 {[%emt 0:00:11]} 22. Rxb7 {[%emt 0:01:04]} Bb6 {[%emt 0:00:05]} 23. Nd2 {[%emt 0:05:43]} Kf7 {[%emt 0:23:00]} (23... Ra7 $14 24. Rxa7 Bxa7) 24. Nc4 $16 {[%emt 0:10:24]} Rfb8 $2 {[%emt 0:00:54] [#] A mistake that costs the game.} 25. Nxb6 $1 $18 {[%emt 0:06:32]} Rxb7 {[%emt 0:00:05]} 26. Nxa8 {[%emt 0:00:08][%mdl 4096] Endgame KRN-KR} Ra7 {[%emt 0:00:03] [#]} 27. Rc1 $1 {[%emt 0:00:16]} Rxa8 {[%emt 0:00:03]} 28. Rxc7+ {[%emt 0:00:06] KR-KR} Kf6 {[%emt 0:00:04]} 29. h4 {[%emt 0:01:52]} h5 {[%emt 0:00:52]} 30. Rc5 {[%emt 0:00:00]} e5 {[%emt 0:00:00]} 31. Kf3 {[%emt 0:05:11] White is clearly winning.} Rb8 {[%emt 0:10:34]} 32. Rc6+ {[%emt 0:00:34]} Kf7 {[%emt 0:00:03]} 33. Rxa6 {[%emt 0:00:13]} Rb2 {[%emt 0:00:04]} 34. a5 {[%emt 0:02:12][%cal Ba4a5,Ba5a6,Ba6a7][%mdl 32]} Ra2 {[%emt 0:00:16]} 35. Ra8 {[%emt 0:00:24] Hoping for a6.} Ra4 {[%emt 0:00:21]} 36. a6 {[%emt 0:00:37]} Ra2 {[%emt 0:00:46]} 37. Ke3 {[%emt 0:01:38]} Ra3+ {[%emt 0:00:34]} 38. Kd2 {[%emt 0:01:53]} (38. Ke4 $142 Ra2 39. Kf5) 38... Ra2+ {[%emt 0:00:07]} (38... e4 $142 39. a7 Ra6) 39. Kd3 {[%emt 0:00:06]} Ra3+ {[%emt 0:00:13]} 40. Kc4 {[%emt 0:00:16]} Ra2 {[%emt 0:00:06]} 41. a7 {[%emt 0:00:50]} Ra5 {[%emt 0:00:42]} 42. e4 {[%emt 0:00:33]} Ra1 {[%emt 0:00:29]} 43. Kd5 {[%emt 0:00:32]} Ra5+ {[%emt 0:00:39]} 44. Kd6 {[%emt 0:00:11]} Kg6 {[%emt 0:00:50]} 45. Ke6 {[%emt 0:01:07]} Kh7 {[%emt 0:01:18]} 46. Kf5 {[%emt 0:00:21] Weighted Error Value: White=0.26 (precise) /Black=0.43} 1-0